Workbook

Sheet Summary
K1: New Costs Associated with Excess Soil Regulations
K3: "An estimated 25 million cubic metres of excess soil is generated in Ontario every year." www.ontario.ca
K4: https://www.ontario.ca/page/handling-excess-soil#:~:text=About%20excess%20soil,-What%20is%20excess&text=An%20estimated%2025%20million%20cubic,where%20it%20may%20be%20reused.
K5: Stats Can 2003: 120,000km of paved road in Ontario
B8: Residential Development | J8: Municipal Road
B9: (High rise building) | J9: (Complete Sewer, Water, and Road Reconstruction)
B10: (Approx. 25,000m3) | J10: (Approx. 1120m & 53,150m3 excess)
G12: Per m3 | O12: Per m | Q12: Per m3
B13: Preconstruction Costs - Owner's Direct Costs | G13: Low | H13: High | J13: Preconstruction Costs - Municipality Costs | O13: Low | P13: High | Q13: Low | R13: High
C14: Site Characterization & Testing | G14: =Construction!C133 -> 4.1062 | H14: =Construction!C133 -> 4.1062 | K14: Site Characterization and Testing | O14: =Preconstruction!C18 -> 48 | P14: =Preconstruction!D18 -> 80 | Q14: =Preconstruction!C19 -> 1 | R14: =Preconstruction!D19 -> 1.7
C15: Engineering | G15: =Construction!C97+Preconstruction!D29 -> 0.6635183443 | H15: =Construction!C97*2+Preconstruction!E29 -> 1.378777046 | K15: Engineering | O15: =Preconstruction!D28 -> 1.116071429 | P15: =Preconstruction!E28 -> 4.6875 | Q15: =Preconstruction!D29 -> 0.02351834431 | R15: =Preconstruction!E29 -> 0.0987770461
C16: Delays | G16: =Construction!C91 -> 1.9324 | H16: =Construction!C90 -> 7.7296 | K16: Delays | O16: 0.01 | P16: 1 | Q16: 0.01 | R16: 0.1
C17: Total | G17: =SUM(G14:G16) -> 6.702118344 | H17: =SUM(H14:H16) -> 13.21457705 | K17: Total | O17: =SUM(O14:O16) -> 49.12607143 | P17: =SUM(P14:P16) -> 85.6875 | Q17: 1.033518344 | R17: 1.898777046
B19: Construction Costs - Contractor Tender Price | J19: Construction Costs - Contractor Tender Price
C20: Contractor QP - Fill management plan | G20: =Q20 -> 0.7 | H20: =R20 -> 1.1 | K20: Contractor QP - Fill management plan, QA | O20: =Construction!C18 -> 30 | P20: =Construction!D18 -> 50 | Q20: =Construction!C19 -> 0.7 | R20: =Construction!D19 -> 1.1
C21: Excavation inefficiencies | G21: =Q21 -> 0.7222483537 | H21: =R21 -> 1.888993415 | K21: Excavation inefficiencies | O21: =Construction!F30+Construction!D39 -> 34.72767857 | P21: =Construction!G30+Construction!E39 -> 89.45535714 | Q21: =Construction!F31+Construction!D40 -> 0.7222483537 | R21: =Construction!G31+Construction!E40 -> 1.888993415
C22: Load tracking | G22: 0.117671108 | H22: 0.222671108 | K22: Load tracking | O22: =Construction!G52+Construction!C60 -> 5.584124453 | P22: =Construction!H52+Construction!C60 -> 10.56693695 | Q22: =Construction!I52+Construction!C61 -> 0.117671108 | R22: =Construction!J52+Construction!C61 -> 0.222671108
C23: Travel Distance | G23: 0 | H23: 10 | K23: Travel Distance | O23: 0 | P23: =Construction!D72 -> 474.5535714 | Q23: 0 | R23: =Construction!D73 -> 10
C24: Increased tipping fees | G24: 0 | H24: =Construction!C100 -> 4
C25: Double handling | G25: 0 | H25: 5
C26: Margin/Overhead (15%) | G26: 0.2309879193 | H26: 1.981749678 | K26: Margin/Overhead (15%) | O26: =SUM(O20:O23)*0.15 -> 10.54677045 | P26: =SUM(P20:P23)*0.15 -> 93.68637983 | Q26: 0.2309879193 | R26: 1.981749678
C27: Total | G27: =SUM(G20:G26) -> 1.770907381 | H27: =SUM(H20:H26) -> 24.1934142 | K27: Total | O27: =SUM(O20:O26) -> 80.85857348 | P27: =SUM(P20:P26) -> 718.2622454 | Q27: 1.770907381 | R27: 15.1934142
B29: Receiving Site - Tipping Fees | J29: Receiving Site - Tipping Fees
C30: Administration | G30: =Q30 -> 0.05275164628 | H30: 0.05275164628 | K30: Administration | O30: =Receiving!D17+Receiving!D25 -> 2.503348214 | P30: =O30 -> 2.503348214 | Q30: =Receiving!D18+Receiving!D26 -> 0.05275164628 | R30: =Q30 -> 0.05275164628
C31: Registration | G31: =Q31 -> 0.015 | H31: =R31 -> 1.25 | K31: Registration | O31: =Receiving!C32 -> 0.3348214286 | P31: =Receiving!D32 -> 0.6696428571 | Q31: =Receiving!C33 -> 0.015 | R31: =Receiving!D33 -> 1.25
C32: QC/QA | G32: 0.2587017874 | H32: 0.2587017874 | K32: QC/QA | O32: =Receiving!C40 -> 12.27678571 | P32: =O32 -> 12.27678571 | Q32: =Receiving!C41 -> 0.2587017874 | R32: =Q32 -> 0.2587017874
C33: Risk/Margin/Overhead (20%) | G33: 0.06529068674 | H33: 0.3122906867 | K33: Risk/Margin/Overhead (20%) | O33: =SUM(O30:O32)*0.2 -> 3.022991071 | P33: =SUM(P30:P32)*0.2 -> 3.089955357 | Q33: 0.06529068674 | R33: 0.3122906867
C34: Total | G34: =SUM(G30:G33) -> 0.3917441204 | H34: 1.87374412 | K34: Total | O34: =SUM(O29:O33) -> 18.13794643 | P34: =SUM(P29:P33) -> 18.53973214 | Q34: =SUM(Q29:Q33) -> 0.3917441204 | R34: =SUM(R29:R33) -> 1.87374412
B36: Total per cu.m | G36: =G34+G27+G17 -> 8.864769846 | H36: =H34+H27+H17 -> 39.28173537 | J36: Grand Total | O36: =O34+O27+O17 -> 148.1225913 | P36: =P34+P27+P17 -> 822.4894775 | Q36: 3.196169846 | R36: 18.96593537
B38: Grand Total (25,000 cu.m) | G38: =ROUND(G36*25000,0) -> 221619 | H38: =ROUND(H36*25000,0) -> 982043 | J38: 25 Million Cubic Meters (annually) | Q38: =Q36*25000000 -> 79904246.14 | R38: =R36*25000000 -> 474148384.2
J40: m road | K40: with infrastructure | M40: replacement cycle
B41: Per Apartment | G41: =ROUND(G38/172,0) -> 1288 | H41: =ROUND(H38/172,0) -> 5710 | J41: 120000000 | K41: 0.5 | M41: 0.01 | O41: =J41*K41*M41*O36 -> 88873554.8 | P41: =J41*K41*M41*P36 -> 493493686.5
B43: 50,261 Apts-2021 (Starts per CMHC) | G43: =ROUND(G41*50261,0) -> 64736168 | H43: =ROUND(H41*50261,0) -> 286990310
B45: Residential Development
B46: (Subdivision)
B47: (Approx. 50,000m3)
G49: Per m3
B50: Preconstruction Costs - Owner's Direct Costs | G50: Low | H50: High
C51: Site Characterization & Testing | G51: =Construction!C191 -> 3.0998 | H51: =Construction!C191 -> 3.0998
C52: Engineering | G52: =Construction!C155+Preconstruction!C19 -> 1.46 | H52: =Construction!C155*2+Preconstruction!D19 -> 2.62
C53: Delays | G53: =Construction!C149 -> 0.9662 | H53: =Construction!C148 -> 5.7972
C54: Total | G54: =SUM(G51:G53) -> 5.526 | H54: =SUM(H51:H53) -> 11.517
B56: Construction Costs - Contractor Tender Price
C57: Contractor QP - Fill management plan | G57: =G20 -> 0.7 | H57: =H20 -> 1.1
C58: Excavation inefficiencies | G58: =G21 -> 0.7222483537 | H58: 1.888993415
C59: Load tracking | G59: =G22 -> 0.117671108 | H59: 0.222671108
C60: Travel Distance | G60: =G23 -> 0 | H60: 10
C61: Increased tipping fees | G61: =G24 -> 0 | H61: 4
C62: Double handling | G62: =G25 -> 0 | H62: 5
C63: Margin/Overhead (15%) | G63: =G26 -> 0.2309879193 | H63: 1.981749678
C64: Total | G64: =SUM(G57:G63) -> 1.770907381 | H64: =SUM(H57:H63) -> 24.1934142
B66: Receiving Site - Tipping Fees
C67: Administration | G67: =Q30 -> 0.05275164628 | H67: =R30 -> 0.05275164628
C68: Registration | G68: =Q31 -> 0.015 | H68: 1.25
C69: QC/QA | G69: =Q32 -> 0.2587017874 | H69: 0.2587017874
C70: Risk/Margin/Overhead (20%) | G70: =Q33 -> 0.06529068674 | H70: 0.3122906867
C71: Total | G71: =SUM(G67:G70) -> 0.3917441204 | H71: 1.87374412
B73: Total per cu.m | G73: =G71+G64+G54 -> 7.688651501 | H73: =H71+H64+H54 -> 37.58415832
B75: Grand Total (50,000 cu.m) | G75: =ROUND(G73*50000,0) -> 384433 | H75: =ROUND(H73*50000,0) -> 1879208
B78: Per Single Family Home | G78: =ROUND(G75/172,0) -> 2235 | H78: =ROUND(H75/172,0) -> 10926
B80: 26,373 SF starts-2021 (per CMHC) | G80: =ROUND(G78*26373,0) -> 58943655 | H80: =ROUND(H78*26373,0) -> 288151398

Sheet Preconstruction
A2: Example
B3: City of London Queens Ave. BRT project. 2022
B4: Details
C5: Storm, sanitary and watermain replacement
C6: Road reconstruction incl. pavement, curbs, sidewalk and BRT appurtenances
C7: Dry utility relocation and replacement
C8: 1120 | D8: m of road way
C9: 53150 | D9: m3 of excess soils
B10: Actual QP Quote
B11: 119950 | C11: $120,000 allowance for all QP and testing requirements - Actual quote: see attached
C12: Meant to include Site Characterization report, soil testing, QP construction management, receiving site evaluation, fill management plan and contractor QA.
B14: QP Work
B15: Assume 60% is for preconstruction costs: Site Characterization report and soil testing.
B16: =B11*0.6 -> 71970 | C16: +/-25%
B17: Actual | C17: Low Range | D17: High Range
B18: =B16/C8 -> 64.25892857 | C18: =ROUND(B18*0.75,0.1) -> 48 | D18: =ROUND(B18*1.25,0.1) -> 80 | E18: per m of road way
B19: =B16/C9 -> 1.354092192 | C19: =ROUND(B19*0.75,1) -> 1 | D19: =ROUND(B19*1.25,1) -> 1.7 | E19: per m3 of excess soil
B22: Engineering: | C22: Extra engineering may be required to handle testing or construction activities associated with soils management
C23: Examples include:
D24: traffic control design for insitu testing - Likely to occur (75% probability) - Assume $1000-$5000 to design plan
D25: special excavation/construction methods - Unlikely to occur (10% probability) - Assume $5000-15000 to design plan
D26: Low Range | E26: High Range
D27: =(1000*0.75)+(5000*0.1) -> 1250 | E27: =(5000*0.75)+(15000*0.1) -> 5250
D28: =D27/C8 -> 1.116071429 | E28: =E27/C8 -> 4.6875 | F28: per m
D29: =D27/C9 -> 0.02351834431 | E29: =E27/C9 -> 0.0987770461 | F29: per m3
B32: Delays: | C32: Due to the extra preconstruction work required it could cause delays to bring a project to tender.
C33: Examples
D34: Inflationary cost increases - Minimum 2% per annum but this year upwards of 10% due to high oil prices effecting many materials.
D35: Repair costs during the delay period - Ex. Watermain break - Likely $15,000+ per break
D36: Other indirect costs - damages to residents, businesses, users of facilities.
C37: This is extremely hard to evaluate but statistically not zero.

Sheet Construction
A2: Example
B3: City of London Queens Ave. BRT project. 2022
B4: Details
C5: Storm, sanitary and watermain replacement
C6: Road reconstruction incl. pavement, curbs, sidewalk and BRT appurtenances
C7: Dry utility relocation and replacement
C8: =Preconstruction!C8 -> 1120 | D8: m of road way
C9: =Preconstruction!C9 -> 53150 | D9: m3 of excess soils
B11: =Preconstruction!B11 -> 119950 | C11: $120,000 allowance for all QP and testing requirements
C12: Meant to include Site Characterization report, soil testing, QP construction management, receiving site evaluation, fill management plan and contractor QA.
B14: QP work
B15: Assume 40% is for construction costs: Fill Management plan creation; on-site QA
B16: =B11*0.4 -> 47980 | C16: +/-25% of actual quote for different projects.
B17: Actual | C17: Low Range | D17: High Range
B18: =B16/C8 -> 42.83928571 | C18: =ROUND(B18*0.75,-1) -> 30 | D18: =ROUND(B18*1.25,-1) -> 50 | E18: per m of road way
B19: =B16/C9 -> 0.9027281279 | C19: =ROUND(B19*0.75,1) -> 0.7 | D19: =ROUND(B19*1.25,1) -> 1.1 | E19: per m3 of excess soil
B21: Excavation Inefficiencies:
B22: Examples
C23: Inability to store soil on neighbouring properties or within Right of Way for reuse requires trucking to and from recieiving or Class 1 site. In the past soil was at times permitted to be side casted or stored in a nearby yard for reuse.
E24: Probability | F24: 0.05 | G24: 0.1
E25: Round trip to storage site | F25: 1 | G25: hr
E26: Truck cost/hr | F26: 100
E27: Truck volume | F27: 10 | G27: m3
F28: Low | G28: High
E29: Total Cost | F29: =C9/F27*F26*F25*F24 -> 26575 | G29: =C9/F27*F26*F25*G24 -> 53150 | H29: for extra trucking rather than side casting or nearby storage yard.
F30: =F29/C8 -> 23.72767857 | G30: =G29/C8 -> 47.45535714 | H30: per m of road
F31: =F29/C9 -> 0.5 | G31: =G29/C9 -> 1 | H31: per m3
C33: Mixing, sorting, segregation of soil types and stockpiling on site and traffic control requirements. This slows down production of equipment.
D34: 5-10% reduction of crew efficiency @ $750/hr is a reasonable assumption.
D35: Probability of occurance is 25-50%.
D36: Crew hours = @$750/hr x 10hr/day x 21 working days/month x 6 months of excess soil management per job
D37: Low (25%) | E37: High (50%)
D38: =750*0.05*0.25*10*21*6 -> 11812.5 | E38: =750*0.1*0.5*10*21*6 -> 47250 | F38: Extra costs for excavation inefficiencies.
D39: =ROUND(D38/C8,0.1) -> 11 | E39: =ROUND(E38/C8,0.1) -> 42 | F39: per m of road
D40: =D38/C9 -> 0.2222483537 | E40: =E38/C9 -> 0.8889934149 | F40: per m3
B42: Load Tracking
B43: Software system | C43: TREAD or SoilFlo
C44: $4/day/truck licencing fees
C45: $1/hr per truck for hardware and connectivity
D46: Triaxle dump truck holds 10m3 | G46: =C9/10 -> 5315 | H46: truck loads
D47: Round trip 0.75-1.5hr | G47: =G46*0.75 -> 3986.25 | H47: hrs | I47: =G46*1.5 -> 7972.5 | J47: hrs
D48: Assume 10 hour work days | G48: =G47/10 -> 398.625 | H48: days | I48: =I47/10 -> 797.25 | J48: days
E49: Low | F49: High | G49: per m | I49: per m3
D50: licencing | E50: =G48*4 -> 1594.5 | F50: =4*I48 -> 3189 | G50: =E50/$C$8 -> 1.423660714 | H50: =F50/$C$8 -> 2.847321429 | I50: =E50/$C$9 -> 0.03 | J50: =F50/$C$9 -> 0.06
D51: Hardware | E51: =1*G47 -> 3986.25 | F51: =I47*1 -> 7972.5 | G51: =E51/$C$8 -> 3.559151786 | H51: =F51/$C$8 -> 7.118303571 | I51: =E51/$C$9 -> 0.075 | J51: =F51/$C$9 -> 0.15
D52: Total | E52: =SUM(E50:E51) -> 5580.75 | F52: =SUM(F50:F51) -> 11161.5 | G52: 4.9828125 | H52: 9.965625 | I52: 0.105 | J52: 0.21
B54: Administrative | C54: Administrative and reporting to owner/QP
C55: 3.5 | D55: hrs per month per project
C56: 65000 | D56: Cost for administrator - includes wages, benefits, pension, vacation, wsib, ei, cpp, etc.
D57: Assume 35 hours/wk with 3 weeks vacation or 1715 annual hours
C58: =55000/1715*3.5 -> 112.244898 | D58: per month
C59: =C58*6 -> 673.4693878 | D59: per 6 month project
C60: =C59/C8 -> 0.6013119534 | D60: per m of road
C61: =C59/C9 -> 0.01267110795 | D61: per m3 of soil
B63: Travel distance
C64: Under the new regulations there will be less sites approved for disposal.
C65: In the past nearby soil deficient sites didn't need a full QP report prior to acceptance therefore they were ready and waiting on a moments notice.
D66: Often sites were determined at the time of construction
D67: To meet the new regulations it would be impossible to prepare the necessary items for sites to receive soils without 3 - 6 months notice.
D68: Tendered contracts don't give that kind of notice prior to construction requirements. Thus nearby opportunities won't exist.
C69: Therefore, soils will be sent further to past approved sites. This further distance travelled can range between and additional 0 min - 1 hour per round trip
D70: Assume 10m3/load and a triaxle dump truck @ $100/hr
D71: =C9/10*100*1 -> 531500 | E71: Extra trucking costs for an additional 1 hour of round trip travel time.
D72: =D71/C8 -> 474.5535714 | E72: per m of roadway
D73: =D71/C9 -> 10 | E73: per m3 of soil
A75: Example (high rise)
B76: 300 South Carriage - London (172 units)
B77: Details
C78: High rise residential construction
C79: 1 level of underground parking
C80: 25000 | D80: m3 of excess soils
C82: Delay costs
C83: 172 | D83: units
C84: 60000 | D84: land price/unit
C85: =C83*C84 -> 10320000 | D85: land price
C86: 4 | D86: delay (months)-high delay
C87: 2.9 | D87: 5 year mortgage rate/25 year ammortization (March 15th)
C88: 48310 | D88: monthly payment
C89: =C88*C86 -> 193240 | D89: total delay cost
C90: =C89/25000 -> 7.7296 | D90: total delay cost/cu.m (25,000 cu.m export high end)
C91: =C90/4 -> 1.9324 | D91: total delay cost/cu.m (25,000 cu.m export low end- 1 month delay)
C93: Engineering Costs (low end, high end would be double due to smaller Developer inefficiencies)
C94: 10000 | D94: Additional Developer staff
C95: 4000 | D95: Civil Engineer (includes contract wording, enforcement)
C96: 2000 | D96: Dump site negotiations
C97: =SUM(C94:C96)/25000 -> 0.64 | D97: Engineering costs/cu.m
C100: 4 | D100: Additional tipping fees/cu.m - assume $40/load
C128: ** Confidential - Geotechnical costs for 25,000 cu.m sampling. Would be worse in a stockpile
C130: Sampling and analysis/reports - Project area only
C131: =77650/25000 -> 3.106 | D131: Sampling and testing per cu.m
C132: =(102655-77650)/25000 -> 1.0002 | D132: Reports per cu.m
C133: =C131+C132 -> 4.1062 | D133: total
A135: Example (subdivision)
B136: Summerside Phase 17 - London (174 units)
B137: Details
C138: 50000 | D138: m3 of excess soils
C140: Delay costs
C141: 174 | D141: lots
C142: 68000 | D142: land price/SFH ($1,500,000/acre)
C143: =C141*C142 -> 11832000 | D143: land price
C144: 6 | D144: delay (months)-high delay
C145: 2.9 | D145: 5 year mortgage rate/25 year ammortization (March 15th)
C146: 48310 | D146: monthly payment
C147: =C146*C144 -> 289860 | D147: total delay cost
C148: =C147/50000 -> 5.7972 | D148: total delay cost/cu.m (50,000 cu.m export high end)
C149: =C148/6 -> 0.9662 | D149: total delay cost/cu.m (50,000 cu.m export low end- 2 month delay)
C151: Engineering Costs (low end, high end would be double due to smaller Developer inefficiencies)
C152: 15000 | D152: Additional Developer staff
C153: 6000 | D153: Civil Engineer (includes contract wording, enforcement)
C154: 2000 | D154: Dump site negotiations
C155: =SUM(C152:C154)/50000 -> 0.46 | D155: Engineering costs/cu.m
C158: 4 | D158: Additional tipping fees/cu.m - assume $40/load
C186: ** Confidential - Geotechnical costs for 50,000 cu.m sampling. Would be worse in a stockpile
C188: Sampling and analysis/reports - Project area only
C189: =129985/50000 -> 2.5997 | D189: Sampling and testing per cu.m
C190: =(154990-129985)/50000 -> 0.5001 | D190: Reports per cu.m
C191: =C189+C190 -> 3.0998 | D191: total

Sheet Receiving
A2: Example
B3: City of London Queens Ave. BRT project. 2022
B4: Details
C5: Storm, sanitary and watermain replacement
C6: Road reconstruction incl. pavement, curbs, sidewalk and BRT appurtenances
C7: Dry utility relocation and replacement
C8: =Preconstruction!C8 -> 1120 | D8: m of road way
C9: =Preconstruction!C9 -> 53150 | D9: m3 of excess soils
B12: Administration
C13: Ticketing
D14: $0.25/ticket/load
D15: Assume 10m3/load
D16: =C9/10*0.25 -> 1328.75 | E16: Extra for the project to produce a ticket per load of excess soil
D17: =D16/C8 -> 1.186383929 | E17: per m of road
D18: =D16/C9 -> 0.025 | E18: per m3 of soil
C20: Administration
D21: $5000 annual in software & hardware and assume 10 projects per year
D22: 65000 | E22: annual labour costs.
E23: Assume 15% of a person to manage new tracking of soils for 10 projects
D24: =D22*0.15/10+5000/10 -> 1475 | E24: Extra for the project for the receiving site to administer the excess soil
D25: =D24/C8 -> 1.316964286 | E25: per m of road
D26: =D24/C9 -> 0.02775164628 | E26: per m3 of soil
B28: Registration
C29: 750 | D29: is the minimum cost to register - allows 50,000m3
D30: Receiving site could be for 50000 or lowest quantity of 600m3
C31: Low | D31: High
C32: =C29/C8/2 -> 0.3348214286 | D32: =C29/C8 -> 0.6696428571 | E32: per m of road
C33: =C29/50000 -> 0.015 | D33: =C29/600 -> 1.25 | E33: per m3 of soil
B36: QA/QC
C37: It is a requirement that QA/QC is performed by the receiving site for every 10,000m3
C38: This requires $5500 in costs to perform spot excavation and testing of the material
C39: 5500 | D39: Cost to excavate, sample and report QA/QC
C40: =C39*2.5/C8 -> 12.27678571 | D40: per m of roadway
C41: =C39*2.5/C9 -> 0.2587017874 | D41: per m3 of soil
B44: Risk
C45: The receiving site is taking the risk that soils received are not what they appear. This requires coverage should QA/QC tests fail.
C46: This requires at least a 5% margin above overhead and profit margins.

Sheet Condensed
K1: New Costs Associated with Excess Soil Regulations
K3: "An estimated 25 million cubic metres of excess soil is generated in Ontario every year." www.ontario.ca
K4: https://www.ontario.ca/page/handling-excess-soil#:~:text=About%20excess%20soil,-What%20is%20excess&text=An%20estimated%2025%20million%20cubic,where%20it%20may%20be%20reused.
K5: Stats Can 2003: 120,000km of paved road in Ontario
B8: Residential Development - 300 South Carriage - London (172 units) | J8: Municipal Road
B9: (High rise building - one storey of underground parking) | J9: (Complete Sewer, Water, and Road Reconstruction)
B10: (Approx. 25,000m3 export) | J10: (Approx. 1120m & 53,150m3 excess)
G12: Per m3 of Soil | O12: Per m of Road | Q12: Per m3 of Soil
G13: Low | H13: High | O13: Low | P13: High | Q13: Low | R13: High
C14: Site Characterization & Testing | G14: =Construction!C133 -> 4.1062 | H14: =Construction!C133 -> 4.1062 | K14: Site Characterization and Testing | O14: =Preconstruction!C18 -> 48 | P14: =Preconstruction!D18 -> 80 | Q14: =Preconstruction!C19 -> 1 | R14: =Preconstruction!D19 -> 1.7
C15: Engineering | G15: =Construction!C97+Preconstruction!D29 -> 0.6635183443 | H15: =Construction!C97*2+Preconstruction!E29 -> 1.378777046 | K15: Engineering | O15: =Preconstruction!D28 -> 1.116071429 | P15: =Preconstruction!E28 -> 4.6875 | Q15: =Preconstruction!D29 -> 0.02351834431 | R15: =Preconstruction!E29 -> 0.0987770461
C16: Delays | G16: =Construction!C91 -> 1.9324 | H16: =Construction!C90 -> 7.7296 | K16: Delays | O16: 0.01 | P16: 1 | Q16: 0.01 | R16: 0.1
B17: Preconstruction Costs | G17: =SUM(G14:G16) -> 6.702118344 | H17: =SUM(H14:H16) -> 13.21457705 | K17: Preconstruction Costs | O17: =SUM(O14:O16) -> 49.12607143 | P17: =SUM(P14:P16) -> 85.6875 | Q17: 1.033518344 | R17: 1.898777046
B20: Contractor QP - Fill management plan | G20: =Q20 -> 0.7 | H20: =R20 -> 1.1 | K20: Contractor QP - Fill management plan | O20: =Construction!C18 -> 30 | P20: =Construction!D18 -> 50 | Q20: =Construction!C19 -> 0.7 | R20: =Construction!D19 -> 1.1
B21: Excavation inefficiencies | G21: =Q21 -> 0.7222483537 | H21: 1.888993415 | K21: Excavation inefficiencies | O21: =Construction!F30+Construction!D39 -> 34.72767857 | P21: =Construction!G30+Construction!E39 -> 89.45535714 | Q21: =Construction!F31+Construction!D40 -> 0.7222483537 | R21: =Construction!G31+Construction!E40 -> 1.888993415
B22: Load tracking | G22: 0.117671108 | H22: 0.222671108 | K22: Load tracking | O22: =Construction!G52+Construction!C60 -> 5.584124453 | P22: =Construction!H52+Construction!C60 -> 10.56693695 | Q22: =Construction!I52+Construction!C61 -> 0.117671108 | R22: =Construction!J52+Construction!C61 -> 0.222671108
B23: Travel Distance | G23: 0 | H23: 10 | K23: Travel Distance | O23: 0 | P23: =Construction!D72 -> 474.5535714 | Q23: 0 | R23: =Construction!D73 -> 10
B24: Increased tipping fees | G24: 0 | H24: =Construction!C100 -> 4 | K24: Increased tipping fees
B25: Double handling | G25: 0 | H25: 5 | K25: Double handling
B26: Margin/Overhead (15%) | G26: 0.2309879193 | H26: 1.981749678 | K26: Margin/Overhead (15%) | O26: =SUM(O20:O23)*0.15 -> 10.54677045 | P26: =SUM(P20:P23)*0.15 -> 93.68637983 | Q26: 0.2309879193 | R26: 1.981749678
B27: Construction Costs | G27: =SUM(G20:G26) -> 1.770907381 | H27: =SUM(H20:H26) -> 24.1934142 | K27: Construction Costs | O27: =SUM(O20:O26) -> 80.85857348 | P27: =SUM(P20:P26) -> 718.2622454 | Q27: 1.770907381 | R27: 15.1934142
B30: Administration | G30: =Q30 -> 0.05275164628 | H30: 0.05275164628 | K30: Administration | O30: =Receiving!D17+Receiving!D25 -> 2.503348214 | P30: =O30 -> 2.503348214 | Q30: =Receiving!D18+Receiving!D26 -> 0.05275164628 | R30: =Q30 -> 0.05275164628
B31: Registration | G31: 0.015 | H31: 1.25 | K31: Registration | O31: =Receiving!C32 -> 0.3348214286 | P31: =Receiving!D32 -> 0.6696428571 | Q31: =Receiving!C33 -> 0.015 | R31: =Receiving!D33 -> 1.25
B32: QC/QA | G32: 0.2587017874 | H32: 0.2587017874 | K32: QC/QA | O32: =Receiving!C40 -> 12.27678571 | P32: =O32 -> 12.27678571 | Q32: =Receiving!C41 -> 0.2587017874 | R32: =Q32 -> 0.2587017874
B33: Risk/Margin/Overhead (20%) | G33: 0.06529068674 | H33: 0.3122906867 | K33: Risk/Margin/Overhead (20%) | O33: =SUM(O30:O32)*0.2 -> 3.022991071 | P33: =SUM(P30:P32)*0.2 -> 3.089955357 | Q33: 0.06529068674 | R33: 0.3122906867
B34: Receiving Site | G34: =SUM(G30:G33) -> 0.3917441204 | H34: 1.87374412 | K34: Receiving Site | O34: =SUM(O29:O33) -> 18.13794643 | P34: =SUM(P29:P33) -> 18.53973214 | Q34: 0.3917441204 | R34: 1.87374412
B36: Total per cu.m | G36: =G34+G27+G17 -> 8.864769846 | H36: =H34+H27+H17 -> 39.28173537 | J36: Grand Total | O36: =O34+O27+O17 -> 148.1225913 | P36: =P34+P27+P17 -> 822.4894775 | Q36: 3.196169846 | R36: 18.96593537
B38: Grand Total (25,000 cu.m) | G38: =ROUND(G36*25000,0) -> 221619 | H38: =ROUND(H36*25000,0) -> 982043 | J38: 25 Million Cubic Meters (annually) | Q38: =Q36*25000000 -> 79904246.14 | R38: =R36*25000000 -> 474148384.2
J40: m road | K40: with infrastructure | M40: replacement cycle
B41: Per Apartment | G41: =ROUND(G38/172,0) -> 1288 | H41: =ROUND(H38/172,0) -> 5710 | J41: 120000000 | K41: 0.5 | M41: 0.01 | O41: =J41*K41*M41*O36 -> 88873554.8 | P41: =J41*K41*M41*P36 -> 493493686.5
B43: 50,261 Apts-2021 (Starts per CMHC) | G43: =ROUND(G41*50261,0) -> 64736168 | H43: =ROUND(H41*50261,0) -> 286990310
B45: Residential Development - Summerside Phase 17 - London (174 units)
B46: (Subdivision - approximately 50,000m3 export)
G47: Per m3 of Soil
G48: Low | H48: High
C49: Site Characterization & Testing | G49: =Construction!C191 -> 3.0998 | H49: =Construction!C191 -> 3.0998
C50: Engineering | G50: =Construction!C155+Preconstruction!C19 -> 1.46 | H50: =Construction!C155*2+Preconstruction!D19 -> 2.62
C51: Delays | G51: =Construction!C149 -> 0.9662 | H51: =Construction!C148 -> 5.7972
B52: Preconstruction Costs | G52: =SUM(G49:G51) -> 5.526 | H52: =SUM(H49:H51) -> 11.517
B55: Contractor QP - Fill management plan | G55: =G20 -> 0.7 | H55: 1.1
B56: Excavation inefficiencies | G56: 0.7222483537 | H56: 1.888993415
B57: Load tracking | G57: 0.117671108 | H57: 0.222671108
B58: Travel Distance | G58: 0 | H58: 10
B59: Increased tipping fees | G59: 0 | H59: 4
B60: Double handling | G60: 0 | H60: 5
B61: Margin/Overhead (15%) | G61: 0.2309879193 | H61: 1.981749678
B62: Construction Costs | G62: =SUM(G55:G61) -> 1.770907381 | H62: =SUM(H55:H61) -> 24.1934142
B65: Administration | G65: =Q30 -> 0.05275164628 | H65: 0.05275164628
B66: Registration | G66: 0.015 | H66: 1.25
B67: QC/QA | G67: 0.2587017874 | H67: 0.2587017874
B68: Risk/Margin/Overhead (20%) | G68: 0.06529068674 | H68: 0.3122906867
B69: Receiving Site | G69: =SUM(G65:G68) -> 0.3917441204 | H69: 1.87374412
B71: Total per cu.m | G71: =G69+G62+G52 -> 7.688651501 | H71: =H69+H62+H52 -> 37.58415832
B73: Grand Total (50,000 cu.m) | G73: =ROUND(G71*50000,0) -> 384433 | H73: =ROUND(H71*50000,0) -> 1879208
B76: Per Single Family Home | G76: =ROUND(G73/172,0) -> 2235 | H76: =ROUND(H73/172,0) -> 10926
B78: 26,373 SF starts-2021 (per CMHC) | G78: =ROUND(G76*26373,0) -> 58943655 | H78: =ROUND(H76*26373,0) -> 288151398

Sheet Recommendations
A1: Recommendations
A2: Item | B2: Suggestion | C2: Reasoning
A3: 1) | B3: If soils are deemed by QP to be Table 1 then considered clean and acceptable anywhere. Regulations no longer apply and only municipal restrictions come into play. | C3: Table 1 soils are the cleanest soil types. Therefore environmental risk logically no longer exists as it pertains to chemical properties. Municipalities can manage through site alteration permits.
A4: 2) | B4: If 1) above is not acceptable then need to reduce red tape for Table 1 type soil receiving sites. Should be similar to EASR process where approvals can be done by a QP in hours not months. | C4: A large part of the costs and strain are that soils will travel further because nearby acceptable sites haven't been approved yet. Table 1 soils are low environmental risk soils. Approval of nearby receiving sites should be quick so that owners can take advantage of them. Positive for climate change issues as well.
A5: 3) | B5: Reduce samples required within table. | C5: It is our understanding that the soil's characterization can be performed with fewer samples required. It is also unclear to QPs if the table is to be used for the total volume excavated or for APECs only. QPs should be able to use discretion for non APEC and a revised, realistic table used for APECs. Labs and QPs can't keep up with the revised testing requirements and the cost is prohibitive to future home buyers
A6: 4) | B6: Consistency across municipalities. | C6: A provincial regulation should create consistency across all municipalities across Ontario. There is very little consistency how excess soils are dealt with from municipality to municipality. Some municipalities are very dilligent like Durham and Sarnia. Others have ignored the regs. And others are taking the middle ground like London. This makes it confusing for QPs, contractors and owners to keep it all straight.
A7: 5) | B7: Allow for greater volumes in gravel pits. | C7: The MNRF expresses to licence holders they are "not in the filling business" and discourage receiving excess soils beyond rehabilitation purposes. Gravel pits are ideal locations for receiving excess soils. 1) They have gone through stringent approval processes for licencing including studies for: archeology, hydrogeology, natural environment, traffic studies, noise and dust, etc. They are also monitored and inspected regularly by MNRF inspectors. Filling gravel pits to pregrade levels should be considered to: avoid bowl like grades; encourage farmland retention; efficient utilization of provincial inspectors; and efficient transportation methods with 2 way haulage. Gravel pits are also ideal candidates for Class 1 receiving sites. This should be encouraged.
A8: 6) | B8: Reduce reports required to one simple document | C8: Eliminate costly reports that create delays and add costs to housing
A9: 7) | B9: Create legislature to make finding reuse sites and getting reuse site approvals easier instead of more restrictive | C9: O. Reg 406/19 has eliminated many reuse sites due to its cumbersome and complex nature resulting in soil being trucked much further (significant environmental impacts). Municipalities are reluctant to approve reuse sites due to nimbyism, misunderstanding of soil reuse benefits, staging and construction methodology, risk aversion and inexperienced staff. Creating standard requirements that allow soil import is required to allow soil to be reused locally.
A10: 8) | B10: Removal of instrument requirement | C10: Although not identified in the cost summary due to time constraints, subdivision costs and delays are impacted the most. There is typically a lot more fill/topsoil to be moved/exported on a subdivision and receiving approvals to import/export can take over a year. For sites with a significant net shortage, import needs to take place over several years as fill becomes available . This is a good opportunity for both receiving and exporting sites to reuse fill locally. Oftentimes, developers/landowners aren't in a position to have the servicing design complete and agreements in place years before the subdivision is ready to be constructed and fill gets hauled away that can be reused locally. Many municipalities don't have site alteration agreements and need the site/subdivision designed/approved fully prior to import.
A11: 9) | B11: Remove MECP soil rules pile size restrictions | C11: 2,500 cu.m piles prevent a landowner from stockpiling enough material onsite to complete cut/fill. Creates drainage issues between the piles.
A12: 10) | B12: Increase max volumes for temp sites (Soil Rules) | C12: More flexibility required at temp sites. Many projects generate more than 10,000 cu.m
A13: 11) | B13: Same QP can be used on both project area and reuse site | C13: Avoid duplication of work and associated costs
A14: 12) | B14: Liaise with landfills about 2025 change to regulation
A15: 13) | B15: Confirm grandfathering in 2023
A16: 14) | B16: Review wet soil requirements | C16: This will add significant costs to SWMF clean outs. Discuss with municipalities, developers, QPs
A17: 15) | B17: Less complex regulations that can be understood by all stakeholders in the costruction industry | C17: Smaller Contractors, Municipalities and Landowners don't have the sophistication to understand and comply with this regulation
